bitfinex-derivatives/quotes_BTCF0:USTF0_20240903
["timestamp","ask_amount","ask_price","bid_price","bid_amount"]
[1725350113820,0.12143,59126.0,59125.0,0.520449]
[1725350114335,0.12143,59126.0,59125.0,0.58777033]
[1725350115436,0.12143,59126.0,59125.0,0.520449]
[1725350116422,0.12143,59126.0,59125.0,0.58776793]
[1725350118134,0.12143,59126.0,59125.0,0.520449]
[1725350123537,0.12143,59126.0,59125.0,0.159649]
[1725350123733,0.12143,59126.0,59125.0,0.520449]
[1725350129346,0.12,59126.0,59125.0,0.520449]
[1725350130538,0.12,59126.0,59125.0,0.159649]
[1725350130738,0.12,59126.0,59125.0,0.520449]
[1725350131147,0.12,59126.0,59125.0,0.159649]
[1725350131341,0.12,59126.0,59125.0,0.520449]
[1725350134447,0.12,59126.0,59125.0,0.430449]
[1725350134745,0.12,59126.0,59125.0,0.520449]
[1725350135450,0.12,59126.0,59125.0,0.159649]
[1725350135750,0.12,59126.0,59125.0,0.520449]
[1725350135947,0.12,59126.0,59125.0,0.58775351]
[1725350136345,0.12,59126.0,59125.0,0.49775351]
[1725350136545,0.12,59126.0,59125.0,0.49775007]
[1725350136745,0.12,59126.0,59125.0,0.49774757]
[1725350137351,0.12,59126.0,59125.0,0.430449]
[1725350138239,0.12,59126.0,59125.0,0.520449]
[1725350139051,0.12,59126.0,59125.0,0.159649]
[1725350139242,0.12,59126.0,59125.0,0.520449]
[1725350140144,0.12,59126.0,59125.0,0.58774121]
[1725350143158,0.12,59126.0,59125.0,0.520449]
[1725350143756,0.12143,59126.0,59125.0,0.520449]
[1725350144547,0.12143,59126.0,59125.0,0.58773972]
[1725350145547,0.12143,59126.0,59125.0,0.520449]
[1725350146158,0.12143,59126.0,59125.0,0.58772964]
[1725350148548,0.12143,59126.0,59125.0,0.520449]
[1725350150950,0.12143,59126.0,59125.0,0.58773072]
[1725350153062,0.12143,59126.0,59125.0,0.49773072]
[1725350154363,0.21143,59126.0,59125.0,0.3628]
[1725350155367,0.279078,59126.0,59125.0,0.3628]
[1725350158656,0.279078,59126.0,59125.0,0.002]
[1725350166164,0.277648,59126.0,59125.0,0.002]
[1725350169453,0.277648,59126.0,59125.0,0.069649]
[1725350180164,0.21,59126.0,59125.0,0.069649]
[1725350180670,0.21143,59126.0,59125.0,0.069649]
[1725350182581,0.21143,59126.0,59125.0,0.430449]
[1725350186777,0.12143,59126.0,59125.0,0.520449]
[1725350187375,0.12143,59126.0,59125.0,0.58773072]
[1725350187577,0.12143,59126.0,59125.0,0.568749]
[1725350188673,0.12143,59126.0,59125.0,0.207949]
[1725350188986,0.12143,59126.0,59125.0,0.568749]
[1725350193175,0.12143,59126.0,59125.0,0.61908222]
[1725350195178,0.12143,59126.0,59125.0,0.568749]
[1725350196078,0.12143,59126.0,59125.0,0.61908222]
[1725350198992,0.12143,59126.0,59125.0,0.66798222]
[1725350200793,0.12143,59126.0,59125.0,0.527649]
[1725350201094,0.12143,59126.0,59125.0,0.430449]
[1725350202490,0.12,59126.0,59125.0,0.430449]
[1725350204700,0.12,59126.0,59125.0,0.069649]
[1725350204888,0.12,59126.0,59125.0,0.430449]
[1725350205699,0.12,59126.0,59125.0,0.069649]
[1725350205882,0.12,59126.0,59125.0,0.430449]
[1725350213699,0.12,59126.0,59125.0,0.57078222]
[1725350214589,0.12,59126.0,59125.0,0.520449]
[1725350216903,0.12143,59126.0,59125.0,0.520449]
[1725350217406,0.12143,59126.0,59125.0,0.159649]
[1725350217600,0.12143,59126.0,59125.0,0.520449]
[1725350218996,0.12143,59126.0,59125.0,0.5708284]
[1725350219197,0.12143,59126.0,59125.0,0.520449]
[1725350221101,0.12143,59126.0,59125.0,0.430449]
[1725350222205,0.12143,59126.0,59125.0,0.520449]
[1725350222807,0.12143,59126.0,59125.0,0.159649]
[1725350223008,0.12143,59126.0,59125.0,0.520449]
[1725350236938,0.12143,59126.0,59125.0,0.430449]
[1725350239225,0.12,59126.0,59125.0,0.069649]
[1725350239437,0.12,59126.0,59125.0,0.430449]
[1725350240535,0.12,59126.0,59125.0,0.069649]
[1725350240736,0.12,59126.0,59125.0,0.430449]
[1725350240926,0.12,59126.0,59125.0,0.49773072]
[1725350241332,0.12,59126.0,59125.0,0.430449]
[1725350242531,0.12,59126.0,59125.0,0.49773072]
[1725350253145,0.12143,59126.0,59125.0,0.49773072]
[1725350255952,0.12143,59126.0,59125.0,0.13693072]
[1725350256148,0.12143,59126.0,59125.0,0.49773072]
[1725350258259,0.12143,59126.0,59125.0,0.13693072]
[1725350258565,0.12143,59126.0,59125.0,0.49773072]
[1725350263565,0.12143,59126.0,59125.0,0.430449]
[1725350265059,0.12143,59126.0,59125.0,0.069649]
[1725350265360,0.12143,59126.0,59125.0,0.430449]
[1725350267670,0.12143,59126.0,59125.0,0.49773072]
[1725350268464,0.12143,59126.0,59125.0,0.430449]
[1725350268664,0.11743,59126.0,59125.0,0.429449]
[1725350270969,0.11743,59126.0,59125.0,0.49673072]
[1725350271466,0.11743,59126.0,59125.0,0.49666658]
[1725350273876,0.11143,59126.0,59125.0,0.49566658]
[1725350274171,0.11743,59126.0,59125.0,0.49666658]
[1725350275269,0.11743,59126.0,59125.0,0.429449]
[1725350275468,0.116,59126.0,59125.0,0.49665753]
[1725350279467,0.116,59126.0,59125.0,0.56430653]
[1725350279666,0.116,59126.0,59125.0,0.591898]
[1725350279967,0.0039,59133.0,59132.0,0.067641]
[1725350280162,0.0039,59140.0,59132.0,0.428841]
[1725350280475,0.0039,59143.0,59142.0,0.06763]
[1725350280663,0.12,59143.0,59142.0,0.5015652]
[1725350280868,0.12,59143.0,59142.0,0.51883]
[1725350281578,0.12,59143.0,59142.0,0.52300198]
[1725350281870,0.12,59143.0,59142.0,0.57429416]
[1725350281871,0.126,59143.0,59142.0,0.57429416]
[1725350282068,0.126,59143.0,59142.0,0.43400198]
[1725350282265,0.216,59143.0,59142.0,0.43500198]
[1725350289595,0.126,59143.0,59142.0,0.52500198]
[1725350290883,0.12743,59143.0,59142.0,0.52500198]
[1725350297995,0.00743,59143.0,59142.0,0.52500198]
[1725350298493,0.0039,59150.0,59142.0,0.52500198]
[1725350298706,0.0039,59153.0,59152.0,0.067619]
[1725350298894,0.12,59153.0,59152.0,0.09]
[1725350299092,0.12,59153.0,59152.0,0.0904]
[1725350299294,0.12,59153.0,59152.0,0.09]
[1725350299803,0.12,59153.0,59152.0,0.157619]
[1725350300590,0.12,59153.0,59152.0,0.158619]
[1725350301090,0.12,59153.0,59152.0,0.159619]
[1725350302199,0.21,59153.0,59152.0,0.069619]
[1725350302998,0.21,59153.0,59152.0,0.07381109]
[1725350305001,0.21,59153.0,59152.0,0.43461109]
[1725350306095,0.12,59153.0,59152.0,0.43461109]
[1725350307700,0.12,59153.0,59152.0,0.07381109]
[1725350308006,0.12,59153.0,59152.0,0.43461109]
[1725350308503,0.12,59153.0,59152.0,0.52461109]
[1725350309499,0.12,59153.0,59152.0,0.57476774]
[1725350311501,0.0039,59160.0,59159.0,0.067611]
[1725350311698,0.13,59160.0,59159.0,0.3612]
[1725350312196,0.13,59160.0,59159.0,0.428811]
[1725350312596,0.13,59160.0,59159.0,0.429811]
[1725350313308,0.13,59160.0,59159.0,0.430811]
[1725350314108,0.13,59160.0,59159.0,0.429811]
[1725350314308,0.13,59160.0,59159.0,0.430811]
[1725350315809,0.13,59160.0,59159.0,0.43488284]
[1725350328522,0.13,59160.0,59159.0,0.48510125]
[1725350328717,0.13,59160.0,59159.0,0.43488284]
[1725350329123,0.13,59160.0,59159.0,0.07408284]
[1725350329318,0.13,59160.0,59159.0,0.43488284]
[1725350331613,0.13,59160.0,59159.0,0.36727184]
[1725350335525,0.13,59160.0,59159.0,0.43488284]
[1725350337514,0.13,59160.0,59159.0,0.50194035]
[1725350337713,0.13,59160.0,59159.0,0.43488284]
[1725350338722,0.13,59160.0,59159.0,0.50194035]
[1725350339533,0.13,59160.0,59159.0,0.43488284]
[1725350340426,0.13,59160.0,59159.0,0.50198564]
[1725350340623,0.13,59160.0,59159.0,0.43488284]
[1725350341538,0.13,59160.0,59159.0,0.50200049]
[1725350342624,0.13,59160.0,59159.0,0.43488284]
[1725350343218,0.13,59160.0,59159.0,0.50199282]
[1725350344332,0.13,59160.0,59159.0,0.59199282]
[1725350346326,0.13,59160.0,59159.0,0.52488284]
[1725350347729,0.13,59160.0,59159.0,0.59199282]
[1725350348029,0.13,59160.0,59159.0,0.52488284]
[1725350349627,0.13,59160.0,59159.0,0.59199282]
[1725350349835,0.13,59160.0,59159.0,0.52488284]
[1725350350135,0.13,59160.0,59159.0,0.43488284]
[1725350354931,0.13,59160.0,59159.0,0.41760704]
[1725350355127,0.13,59160.0,59159.0,0.36727184]
[1725350355328,0.2738,59160.0,59159.0,0.36727184]
[1725350358334,0.3638,59160.0,59159.0,0.36727184]
[1725350361041,0.3638,59160.0,59159.0,0.3632]
[1725350363638,0.3638,59160.0,59159.0,0.0024]
[1725350364729,0.3638,59160.0,59151.0,0.0503352]
[1725350364730,1.47092,59160.0,59151.0,0.0503352]
[1725350364930,0.0904,59153.0,59149.0,0.0043]
[1725350365128,0.0904,59153.0,59149.0,0.0004]
[1725350365129,0.0904,59150.0,59149.0,0.0004]
[1725350365336,0.22,59150.0,59149.0,0.0004]
[1725350365642,0.067624,59148.0,59146.0,0.00407081]
[1725350365937,0.067624,59148.0,59139.0,0.3608]
[1725350365938,0.067628,59144.0,59140.0,0.0039]
[1725350366137,0.067628,59144.0,59139.0,0.3608]
[1725350366138,0.197028,59144.0,59139.0,0.3608]
[1725350366440,0.0004,59140.0,59139.0,0.3608]
[1725350366644,0.1304,59140.0,59139.0,0.3608]
[1725350366938,0.1284,59140.0,59139.0,0.36499998]
[1725350367635,0.1284,59140.0,59139.0,0.36599998]
[1725350367840,0.1284,59140.0,59139.0,0.36699998]
[1725350369746,0.2184,59140.0,59139.0,0.36699998]
[1725350382965,0.1284,59140.0,59139.0,0.43463298]
[1725350383150,0.2184,59140.0,59139.0,0.43463298]
[1725350386347,0.5792,59140.0,59139.0,0.07383298]
[1725350393759,0.2184,59140.0,59139.0,0.07383298]
[1725350400166,0.1284,59140.0,59139.0,0.07383298]
[1725350400563,0.1284,59140.0,59139.0,0.00619998]
[1725350400959,0.02688344,59140.0,59139.0,0.29186301]
[1725350404851,0.02688344,59140.0,59139.0,0.35949601]
[1725350405766,0.02688344,59140.0,59139.0,0.20267426]
[1725350405966,0.00025359,59145.0,59139.0,0.29185635]
[1725350406172,0.10025359,59145.0,59144.0,0.3608]
[1725350406363,0.10025359,59145.0,59144.0,0.64645637]
[1725350406666,0.10025359,59145.0,59144.0,0.64645004]
[1725350407057,0.10325359,59145.0,59144.0,0.64645004]
[1725350407260,0.10325359,59145.0,59144.0,0.64745004]
[1725350407461,0.10325359,59145.0,59144.0,0.49064128]
[1725350407871,0.10025359,59145.0,59144.0,0.49064128]
[1725350408079,0.10325359,59145.0,59144.0,0.49164128]
[1725350408561,0.10325359,59145.0,59144.0,0.49162768]
[1725350408965,0.00325359,59145.0,59144.0,0.64843266]
[1725350409668,0.00325359,59145.0,59144.0,0.64843228]
[1725350409868,0.00325359,59145.0,59144.0,0.64883228]
[1725350410464,0.00325359,59145.0,59144.0,0.49202768]
[1725350410669,0.00325359,59145.0,59144.0,0.13122768]
[1725350413371,0.00325359,59145.0,59144.0,0.13124509]
[1725350414076,0.00325359,59145.0,59144.0,0.49204509]
[1725350414576,0.00325359,59145.0,59144.0,0.59280972]
[1725350414969,0.00325359,59145.0,59144.0,0.49204509]
[1725350415472,0.00325359,59145.0,59144.0,0.64884557]
[1725350415973,0.00325359,59145.0,59144.0,0.71647357]
[1725350418170,0.00325359,59145.0,59144.0,0.55964951]
[1725350418376,0.00325359,59145.0,59144.0,0.7164472]
[1725350418579,0.00325359,59145.0,59144.0,0.3556472]
[1725350418768,0.00325359,59145.0,59144.0,0.7164472]
[1725350419970,0.00325359,59145.0,59144.0,0.9464472]
[1725350423373,0.00325359,59145.0,59144.0,0.94644569]
[1725350423577,0.0039,59152.0,59151.0,0.06762]
[1725350423779,0.0039,59159.0,59151.0,0.78764083]
[1725350423975,0.6837,59160.0,59158.0,0.2304]
[1725350423976,0.32378,59160.0,59158.0,0.2304]
[1725350424175,0.0461,59161.0,59158.0,0.2304]
[1725350424374,0.0461,59161.0,59160.0,0.06749602]
[1725350424582,0.0461,59161.0,59160.0,0.06709602]
[1725350426689,0.0461,59161.0,59160.0,0.001]
[1725350427079,0.0461,59161.0,59160.0,0.06909602]
[1725350427378,0.0461,59161.0,59160.0,0.002]
[1725350428890,0.343708,59161.0,59160.0,0.002]
[1725350429076,1.450788,59161.0,59160.0,0.002]
[1725350429384,0.343708,59161.0,59160.0,0.002]
[1725350429685,0.850788,59161.0,59160.0,0.002]
[1725350429876,0.343708,59161.0,59160.0,0.002]
[1725350430077,0.0461,59161.0,59160.0,0.002]
[1725350432270,0.0461,59161.0,59160.0,0.06909602]
[1725350432475,0.1061,59161.0,59160.0,0.002]
[1725350432681,0.84318,59161.0,59160.0,0.002]
[1725350433081,0.84318,59161.0,59160.0,0.06909602]
[1725350433890,0.84318,59161.0,59160.0,0.002]
[1725350434189,0.84318,59161.0,59160.0,0.001]
[1725350434379,0.84318,59161.0,59160.0,0.002]
[1725350434380,0.3361,59161.0,59160.0,0.002]
[1725350434580,0.84318,59161.0,59160.0,0.06909602]
[1725350434894,0.3361,59161.0,59160.0,0.06909602]
[1725350435076,0.1061,59161.0,59160.0,0.06909602]
[1725350435880,0.173708,59161.0,59160.0,0.06909602]
[1725350436084,0.403708,59161.0,59160.0,0.06909602]
[1725350436580,0.403708,59161.0,59160.0,0.05031341]
[1725350436581,1.510788,59161.0,59160.0,0.05031341]
[1725350436790,1.510788,59161.0,59160.0,0.001]
[1725350437488,1.510788,59161.0,59160.0,0.002]
[1725350437991,1.370788,59161.0,59160.0,0.002]
[1725350438797,0.067614,59156.0,59153.0,0.0503217]
[1725350438999,0.067614,59156.0,59151.0,0.0004]
[1725350439000,0.518816,59154.0,59151.0,0.0004]
[1725350439292,0.067622,59149.0,59148.0,0.0503217]
[1725350439498,0.067623,59148.0,59147.0,0.0503217]
[1725350439690,0.606423,59148.0,59147.0,0.0503217]
[1725350440000,1.852223,59148.0,59147.0,0.0503217]
[1725350440494,1.852223,59148.0,59146.0,0.0503217]
[1725350440495,0.067624,59147.0,59146.0,0.0503217]
[1725350440690,0.408024,59147.0,59146.0,0.0503217]
[1725350440899,0.407024,59147.0,59146.0,0.0503217]
[1725350441598,1.4476,59147.0,59145.0,0.05032017]
[1725350441794,0.067627,59145.0,59144.0,0.05032017]
[1725350442096,0.067628,59144.0,59143.0,0.05032017]
[1725350442294,0.196628,59144.0,59143.0,0.05032017]
[1725350442596,0.196628,59144.0,59142.0,0.05057376]
[1725350442597,0.067629,59143.0,59142.0,0.05057376]
[1725350442800,0.188029,59143.0,59142.0,0.05057376]
[1725350443092,0.067029,59143.0,59142.0,0.00025359]
[1725350443289,0.065029,59143.0,59142.0,0.00025359]
[1725350443892,0.067029,59143.0,59142.0,0.00125359]
[1725350444093,0.071029,59143.0,59142.0,0.00225359]
[1725350445393,0.071029,59143.0,59142.0,0.05253491]
[1725350445593,0.071029,59143.0,59142.0,0.00225359]
[1725350445798,0.081029,59143.0,59142.0,0.00225359]
[1725350446311,0.441829,59143.0,59142.0,0.00225359]
[1725350446595,0.441829,59143.0,59142.0,0.05253491]
[1725350446896,1.549069,59143.0,59142.0,0.00225359]
[1725350450908,1.551069,59143.0,59142.0,0.00225359]
[1725350451401,1.618698,59143.0,59142.0,0.00225359]
[1725350451597,1.48644,59143.0,59137.0,0.0039]
[1725350451808,0.06764,59133.0,59132.0,0.0039]
[1725350452013,0.06764,59133.0,59131.0,0.05028132]
[1725350452014,0.297641,59132.0,59131.0,0.05028132]
[1725350452211,0.408041,59132.0,59130.0,0.05454149]
[1725350452398,0.0004,59131.0,59130.0,0.05028132]
[1725350452707,0.109,59131.0,59129.0,0.05028132]
[1725350453706,0.109,59131.0,59130.0,0.003]
[1725350454211,0.176643,59131.0,59130.0,0.003]
[1725350455519,0.176643,59131.0,59129.0,0.006]
[1725350455821,0.0004,59130.0,59129.0,0.006]
[1725350456108,0.1204,59130.0,59126.0,0.05028132]
[1725350456306,0.0004,59127.0,59126.0,0.05028132]
[1725350456512,0.0004,59127.0,59125.0,0.09715724]
[1725350456905,0.3608,59131.0,59129.0,0.0016]
[1725350457214,0.548443,59131.0,59130.0,0.0004]
[1725350459712,0.548443,59131.0,59130.0,0.0034]
[1725350460515,0.548443,59131.0,59130.0,0.0044]
[1725350462211,0.778443,59131.0,59130.0,0.0044]
[1725350462820,0.417643,59131.0,59130.0,0.0044]
[1725350463020,0.778443,59131.0,59130.0,0.0044]
[1725350469020,0.417643,59131.0,59130.0,0.0044]
[1725350469221,0.778443,59131.0,59130.0,0.0044]
[1725350470015,0.638443,59131.0,59130.0,0.0044]
[1725350473819,0.639873,59131.0,59130.0,0.0044]
[1725350474025,1.747233,59131.0,59130.0,0.0044]
[1725350476822,2.108033,59131.0,59130.0,0.0044]
[1725350479430,2.108033,59131.0,59130.0,0.0546088]
[1725350480025,1.600673,59131.0,59130.0,0.0546088]
[1725350480226,2.108033,59131.0,59130.0,0.0546088]
[1725350480617,2.108033,59131.0,59130.0,0.0044]
[1725350484422,2.018033,59131.0,59130.0,0.07147345]
[1725350484624,1.508033,59131.0,59130.0,0.0044]
[1725350484827,1.214876,59131.0,59130.0,0.0044]
[1725350485022,1.214876,59131.0,59130.0,0.07168827]
[1725350485023,1.814876,59131.0,59130.0,0.07168827]
[1725350485228,0.549873,59131.0,59130.0,0.07168827]
[1725350485420,0.549873,59131.0,59130.0,0.0944]
[1725350486743,0.549873,59131.0,59130.0,0.162044]
[1725350486744,0.48223,59131.0,59130.0,0.162044]
[1725350487525,0.48223,59131.0,59130.0,0.072044]
[1725350491243,0.549873,59131.0,59130.0,0.072044]
[1725350491435,0.549873,59131.0,59130.0,0.0044]
[1725350495036,0.548443,59131.0,59130.0,0.0044]
[1725350500651,0.187643,59131.0,59130.0,0.0044]
[1725350500832,0.12,59131.0,59130.0,0.162044]
[1725350501032,0.0039,59135.0,59134.0,0.067639]
[1725350501232,0.00025359,59136.0,59135.0,0.067638]
[1725350501447,0.00025359,59136.0,59135.0,0.76207795]
[1725350501641,0.00025359,59136.0,59135.0,1.46233961]
[1725350501941,0.00025359,59136.0,59135.0,0.95501961]
[1725350502130,0.00025359,59136.0,59135.0,0.35501961]
[1725350502337,0.00025359,59136.0,59135.0,1.36167795]
[1725350502542,0.00025359,59136.0,59135.0,0.25435795]
[1725350503538,0.00525359,59136.0,59135.0,0.76167795]
[1725350504350,0.00825359,59136.0,59135.0,0.76167795]
[1725350505853,0.0039,59143.0,59142.0,0.06763]
[1725350506166,0.09,59146.0,59143.0,0.067629]
[1725350506354,0.09,59146.0,59145.0,0.0004]
[1725350507648,0.09,59147.0,59145.0,0.0004]
[1725350507951,0.005,59146.0,59145.0,0.0014]
[1725350508138,0.005,59146.0,59145.0,0.001]
[1725350508939,0.005,59146.0,59145.0,0.002]
[1725350509539,0.097,59147.0,59145.0,0.002]
[1725350509741,0.097,59147.0,59146.0,0.0004]
[1725350510749,0.09,59147.0,59146.0,0.0004]
[1725350511239,0.09,59147.0,59146.0,0.05066063]
[1725350511641,0.097,59147.0,59146.0,0.05166063]
[1725350513252,0.097,59147.0,59146.0,0.0014]
[1725350513445,0.097,59147.0,59146.0,0.0024]
[1725350516050,0.097,59147.0,59146.0,0.070025]
[1725350517647,0.137,59147.0,59146.0,0.070025]
[1725350522662,0.047,59147.0,59146.0,0.070025]
[1725350522954,0.047,59147.0,59146.0,0.0024]
[1725350522955,0.204624,59147.0,59146.0,0.0024]
[1725350524760,0.204624,59147.0,59146.0,0.070025]
[1725350525653,0.047,59147.0,59146.0,0.070025]
[1725350525961,0.007,59147.0,59146.0,0.070025]
[1725350526153,0.007,59147.0,59146.0,0.118425]
[1725350526459,0.007,59147.0,59146.0,0.23133464]
[1725350526866,0.007,59147.0,59146.0,0.27673464]
[1725350527258,0.007,59147.0,59146.0,0.209625]
[1725350529059,0.007,59147.0,59146.0,0.118425]
[1725350530358,0.007,59147.0,59146.0,0.20231205]
[1725350530958,0.007,59147.0,59146.0,0.118425]
[1725350531359,0.007,59147.0,59146.0,0.20231205]
[1725350531557,0.007,59147.0,59146.0,0.33115056]
[1725350532471,0.007,59147.0,59146.0,0.24726351]
[1725350532671,0.007,59147.0,59146.0,0.24726112]
[1725350538761,0.007,59147.0,59146.0,0.19886112]
[1725350539273,0.097,59147.0,59146.0,0.19886112]
[1725350539773,0.007,59147.0,59146.0,0.75032278]
[1725350539997,0.007,59147.0,59146.0,1.47408939]
[1725350540167,0.00025359,59151.0,59150.0,0.157621]
[1725350540363,0.00025359,59151.0,59150.0,0.38777602]
[1725350540571,0.00025359,59151.0,59150.0,1.49493192]
[1725350541262,0.00725359,59151.0,59150.0,1.49593192]
[1725350541974,0.00825359,59151.0,59150.0,1.49693192]
[1725350542468,0.00825359,59151.0,59150.0,1.4969147]
[1725350542676,0.00825359,59151.0,59150.0,1.3960399]
[1725350543875,0.00825359,59151.0,59150.0,1.4969147]
[1725350544267,0.00825359,59151.0,59150.0,1.50112613]
[1725350544470,0.00825359,59151.0,59150.0,1.40025133]
[1725350545570,0.00825359,59151.0,59150.0,0.80025133]
[1725350545776,0.00825359,59151.0,59150.0,1.40025133]
[1725350545969,0.0039,59156.0,59155.0,0.067615]
[1725350546170,0.09,59160.0,59155.0,0.0904]
[1725350546171,0.0939,59160.0,59155.0,0.0904]
[1725350546370,0.09,59160.0,59159.0,0.0004]
[1725350547980,0.09,59160.0,59159.0,0.0014]
[1725350549069,0.09,59160.0,59159.0,0.0024]
[1725350552167,0.09,59160.0,59159.0,0.0014]
[1725350552370,0.09,59160.0,59159.0,0.00654995]
[1725350552570,0.09,59160.0,59159.0,0.0024]
[1725350552769,0.09,59160.0,59159.0,0.0014]
[1725350553067,0.09,59160.0,59159.0,0.0024]
[1725350554469,0.067608,59161.0,59159.0,0.0024]
[1725350554669,0.067608,59161.0,59160.0,0.0004]
[1725350556583,0.067608,59161.0,59160.0,0.0024]
[1725350561784,0.157608,59161.0,59160.0,0.0024]
[1725350567995,0.067608,59161.0,59160.0,0.06957288]
[1725350569394,0.067608,59161.0,59160.0,0.0024]
[1725350569900,0.157608,59161.0,59160.0,0.06971636]
[1725350570092,0.157608,59161.0,59160.0,0.0024]
[1725350571592,0.225216,59161.0,59160.0,0.0024]
[1725350571792,0.225216,59161.0,59160.0,0.05047951]
[1725350571793,1.264688,59161.0,59160.0,0.05047951]
[1725350571997,0.135222,59159.0,59158.0,0.05047951]
[1725350572201,0.135222,59159.0,59155.0,0.0004]
[1725350572202,0.135226,59157.0,59156.0,0.05047951]
[1725350572496,0.067614,59156.0,59155.0,0.0004]
[1725350572704,1.334134,59156.0,59155.0,0.0004]
[1725350572893,0.067615,59155.0,59154.0,0.00025359]
[1725350573099,1.303775,59155.0,59154.0,0.00025359]
[1725350573309,1.304175,59155.0,59154.0,0.00025359]
[1725350573987,1.303175,59155.0,59154.0,0.00025359]
[1725350574603,1.304175,59155.0,59154.0,0.00125359]
[1725350574803,1.394175,59155.0,59154.0,0.00125359]
[1725350576505,1.394175,59155.0,59154.0,0.00225359]
[1725350577196,1.754975,59155.0,59154.0,0.00225359]
[1725350578697,1.75907813,59155.0,59154.0,0.00225359]
[1725350579503,1.66907813,59155.0,59154.0,0.00225359]
[1725350579700,1.75907813,59155.0,59154.0,0.00225359]
[1725350579898,1.06907813,59155.0,59154.0,0.00225359]
[1725350580099,1.75907813,59155.0,59154.0,0.00225359]
[1725350580401,1.06907813,59155.0,59154.0,0.00225359]
[1725350580606,0.0024,59155.0,59154.0,0.00225359]
[1725350580906,0.0024,59155.0,59154.0,0.06986959]
[1725350581509,0.0024,59155.0,59154.0,0.19868104]
[1725350582105,0.0024,59155.0,59154.0,1.30584104]
[1725350582401,0.0004,59159.0,59158.0,0.067612]
[1725350582607,0.0004,59159.0,59158.0,0.73152732]
[1725350583507,0.00143,59161.0,59160.0,0.067609]
[1725350583708,0.00143,59161.0,59160.0,0.068009]
[1725350585313,0.00343,59161.0,59160.0,0.069009]
[1725350585901,0.00343,59161.0,59160.0,0.070009]
[1725350587500,0.00343,59161.0,59160.0,0.0741445]
[1725350590108,0.00343,59161.0,59160.0,0.14119703]
[1725350590911,0.09,59166.0,59160.0,0.07358803]
[1725350591109,0.09,59166.0,59164.0,0.067604]
[1725350591310,0.0676,59168.0,59165.0,0.0904]
[1725350591508,0.0676,59168.0,59167.0,0.0004]
[1725350591705,0.0676,59168.0,59165.0,0.0904]
[1725350592015,0.0004,59166.0,59165.0,0.158004]
[1725350593109,0.0004,59166.0,59165.0,0.159004]
[1725350594214,0.0004,59166.0,59165.0,0.160004]
[1725350597413,0.0004,59166.0,59165.0,0.070004]
[1725350605421,0.0004,59166.0,59165.0,0.12029048]
[1725350605611,0.0004,59166.0,59165.0,0.070004]
[1725350605814,0.0004,59166.0,59165.0,0.069004]
[1725350606218,0.0004,59166.0,59165.0,0.070004]
[1725350608531,0.0004,59166.0,59165.0,1.73324136]
[1725350608731,0.0004,59166.0,59165.0,1.73424136]
[1725350608921,0.0004,59166.0,59165.0,1.84342383]
[1725350609627,0.0004,59166.0,59165.0,1.74272262]
[1725350609925,0.00183,59166.0,59165.0,1.74272262]
[1725350613421,0.00183,59166.0,59165.0,1.84341088]
[1725350615331,0.00183,59166.0,59165.0,1.48259967]
[1725350615539,0.00183,59166.0,59165.0,1.84339967]
[1725350615833,0.0039,59172.0,59165.0,1.84339967]
[1725350615834,0.09,59170.0,59169.0,0.067599]
[1725350616029,0.09,59170.0,59169.0,0.15189444]
[1725350616233,0.09,59170.0,59169.0,0.067999]
[1725350617840,0.09,59170.0,59169.0,0.068999]
[1725350618031,0.09,59170.0,59169.0,0.069999]
[1725350618334,0.157598,59170.0,59169.0,0.069999]
[1725350620337,0.157598,59170.0,59169.0,0.13713089]
[1725350620533,0.157598,59170.0,59169.0,0.13613089]
[1725350620837,0.157598,59170.0,59169.0,0.13713089]
[1725350623229,0.157598,59170.0,59169.0,0.06953189]
[1725350623441,0.277598,59170.0,59169.0,0.05275346]
[1725350623742,0.277598,59170.0,59169.0,0.0024]
[1725350624935,0.345196,59170.0,59169.0,0.0024]
[1725350627844,0.345196,59170.0,59169.0,0.05275346]
[1725350628636,0.705996,59170.0,59169.0,0.05275346]
[1725350630647,0.615996,59170.0,59169.0,0.05275346]
[1725350630837,0.548398,59170.0,59169.0,0.05275346]
[1725350631039,0.638398,59170.0,59169.0,0.05275346]
[1725350633143,0.638398,59170.0,59169.0,0.0024]
[1725350633740,0.638398,59170.0,59169.0,0.05276253]
[1725350641653,0.638398,59170.0,59169.0,0.05279011]
[1725350643647,0.638398,59170.0,59169.0,0.0024]
[1725350643856,0.639828,59170.0,59169.0,0.0024]
[1725350645350,0.707426,59170.0,59169.0,0.0024]
[1725350645553,0.707426,59170.0,59169.0,0.05282183]
[1725350645750,0.707426,59170.0,59169.0,0.0024]
[1725350646152,0.707426,59170.0,59169.0,0.05283728]
[1725350646553,0.707426,59170.0,59169.0,0.0024]
[1725350646949,0.346626,59170.0,59169.0,0.0024]
[1725350647151,1.068226,59170.0,59169.0,0.0024]
[1725350647353,1.068226,59170.0,59169.0,0.05283911]
[1725350647555,1.068226,59170.0,59169.0,0.0024]
[1725350648151,0.135206,59166.0,59165.0,0.05084089]
[1725350648457,0.135206,59166.0,59165.0,0.0004]
[1725350648458,0.255606,59166.0,59165.0,0.0004]
[1725350648661,1.362646,59166.0,59165.0,0.0004]
[1725350648847,1.412546,59166.0,59165.0,0.0004]
[1725350649255,0.067609,59160.0,59159.0,0.05044089]
[1725350649456,0.789609,59160.0,59159.0,0.05044089]
[1725350649758,0.788609,59160.0,59159.0,0.05044089]
[1725350650255,0.066611,59159.0,59158.0,0.05044089]
[1725350650454,0.157011,59159.0,59158.0,0.05044089]
[1725350651162,0.156011,59159.0,59158.0,0.05044089]